bitfinex/quotes_ETHUSD_20220115
["timestamp","ask_amount","ask_price","bid_price","bid_amount"]
[1642268579362,4.87246509,3355.6,3355.5,1.29212287]
[1642268579770,4.90440129,3355.6,3355.5,1.21763609]
[1642268579963,2.35600716,3355.6,3355.5,1.21763609]
[1642268580563,4.90452995,3355.6,3355.5,1.21763609]
[1642268580962,4.90452995,3355.6,3355.4,1.48939]
[1642268581163,5.68152995,3355.6,3355.4,1.48939]
[1642268581765,2.54852279,3355.5,3355.4,1.48939]
[1642268582164,2.54852279,3355.5,3355.4,1.49052684]
[1642268584418,3.32552279,3355.5,3355.4,1.49052684]
[1642268587569,4.10252279,3355.5,3355.4,1.49052684]
[1642268590817,4.87952279,3355.5,3355.4,1.49052684]
[1642268593974,5.65652279,3355.5,3355.4,1.49052684]
[1642268597066,6.43352279,3355.5,3355.4,1.49052684]
[1642268600324,7.21052279,3355.5,3355.4,1.49052684]
[1642268600922,7.21052279,3355.5,3355.4,3.31589726]
[1642268601565,7.21052279,3355.5,3355.4,1.49052684]
[1642268602166,1.25323279,3355.5,3355.4,3.78293834]
[1642268602367,1.25323279,3355.5,3355.4,3.89813834]
[1642268602570,1.25323279,3355.5,3355.4,3.89893834]
[1642268602766,0.777,3355.7,3355.4,4.64437834]
[1642268602967,0.777,3355.7,3355.5,0.00920571]
[1642268603167,0.777,3355.7,3355.5,0.429]
[1642268603370,3.09061004,3355.7,3355.6,1.90434108]
[1642268603569,1.554,3355.7,3355.6,1.94313325]
[1642268604268,0.804278,3355.8,3355.6,1.94313325]
[1642268604468,0.804278,3355.8,3355.7,0.74463]
[1642268604672,0.777,3355.8,3355.7,3.86809621]
[1642268604868,0.77813685,3355.8,3355.7,3.86809621]
[1642268605518,1.14885563,3356.0,3355.7,3.86809621]
[1642268605918,1.14999248,3356.0,3355.7,4.64440148]
[1642268606118,0.00113685,3356.0,3355.7,2.72969197]
[1642268606426,0.777,3356.1,3355.8,0.5514]
[1642268606618,0.777,3356.0,3355.9,1.48908]
[1642268606826,0.027278,3356.3,3355.9,2.0693733]
[1642268607020,0.027278,3356.3,3356.0,1.2612219]
[1642268607218,1.03695,3356.2,3356.0,1.40574889]
[1642268607418,1.03695,3356.2,3356.0,1.72274889]
[1642268607619,0.030141,3356.1,3356.0,1.72274889]
[1642268607822,6.216,3356.4,3356.0,1.72274889]
[1642268608018,6.216,3356.4,3356.1,0.2978044]
[1642268608218,0.00170527,3356.3,3356.1,0.7268044]
[1642268608419,0.00170527,3356.3,3356.1,0.76526424]
[1642268608621,0.00113685,3356.2,3356.1,0.76526424]
[1642268608820,0.00113685,3356.2,3356.1,2.60719585]
[1642268609077,0.00113685,3356.2,3356.1,0.429]
[1642268609672,0.77813685,3356.2,3356.1,0.429]
[1642268610873,0.77813685,3356.2,3356.1,1.91443635]
[1642268613021,1.55513685,3356.2,3356.1,1.91443635]
[1642268616126,2.33213685,3356.2,3356.1,1.91443635]
[1642268616773,2.63033685,3356.2,3356.1,1.91443635]
[1642268618571,2.63033685,3356.2,3356.1,3.77029082]
[1642268618769,2.63033685,3356.2,3356.1,1.91443635]
[1642268619274,3.40733685,3356.2,3356.1,1.91443635]
[1642268619470,3.40733685,3356.2,3356.1,3.72900292]
[1642268619671,3.40733685,3356.2,3356.1,1.91443635]
[1642268619870,3.40733685,3356.2,3356.1,3.72331208]
[1642268622421,4.18433685,3356.2,3356.1,3.72331208]
[1642268622720,6.73238724,3356.2,3356.1,1.91443635]
[1642268623620,6.73238724,3356.2,3356.1,3.72845172]
[1642268625079,6.73238724,3356.2,3356.1,1.91443635]
[1642268625478,6.73238724,3356.2,3356.1,3.74165528]
[1642268625678,7.50938724,3356.2,3356.1,1.91443635]
[1642268626678,7.50938724,3356.2,3356.1,3.75164912]
[1642268627483,7.50938724,3356.2,3356.1,1.91443635]
[1642268627717,7.50938724,3356.2,3356.1,2.03353635]
[1642268628917,8.28638724,3356.2,3356.1,2.03353635]
[1642268629320,8.23638724,3356.2,3356.1,2.03353635]
[1642268629918,8.23638724,3356.2,3356.1,1.91443635]
[1642268630217,8.22619664,3356.2,3356.1,1.91443635]
[1642268632173,9.00319664,3356.2,3356.1,1.91443635]
[1642268635219,9.78019664,3356.2,3356.1,1.91443635]
[1642268635620,3.82411664,3356.2,3356.1,2.03353635]
[1642268636020,3.82411664,3356.2,3356.1,2.0679493]
[1642268636322,6.216,3356.4,3356.1,2.0679493]
[1642268636323,6.216,3356.4,3356.1,2.1823493]
[1642268636720,6.216,3356.4,3356.1,2.1839493]
[1642268636921,6.216,3356.4,3356.1,2.1831493]
[1642268637123,6.216,3356.4,3356.2,0.112]
[1642268637124,0.26035,3356.4,3356.2,0.112]
[1642268637325,0.010911,3357.1,3356.4,0.2977782]
[1642268637531,2.30222044,3357.2,3356.6,0.7444]
[1642268637726,2.30222044,3357.2,3356.7,1.90964212]
[1642268637926,2.30222044,3357.2,3356.7,2.02324212]
[1642268638126,2.30222044,3357.2,3356.7,2.02164212]
[1642268638327,2.30222044,3357.2,3356.7,1.90964212]
[1642268638524,3.07922044,3357.2,3356.7,1.90964212]
[1642268638725,3.07922044,3357.2,3356.8,1.24355271]
[1642268639167,1.554,3357.2,3356.9,0.74447]
[1642268639568,0.50974666,3357.1,3356.9,0.49447]
[1642268639968,0.00454738,3357.0,3356.9,0.49447]
[1642268641170,0.51429404,3357.0,3356.9,0.49447]
[1642268641569,1.29129404,3357.0,3356.9,0.49447]
[1642268644119,1.20827754,3357.2,3356.9,0.49447]
[1642268644818,1.98527754,3357.2,3356.9,0.49447]
[1642268648074,0.05189639,3357.1,3356.9,0.49447]
[1642268648472,2.76227754,3357.2,3356.9,0.49447]
[1642268650526,0.05918503,3357.1,3356.9,0.49447]
[1642268650723,2.76227754,3357.2,3356.9,0.49447]
[1642268651323,3.53927754,3357.2,3356.9,0.49447]
[1642268652524,3.53927754,3357.2,3356.9,1.18907]
[1642268652723,3.53927754,3357.2,3356.9,1.21937154]
[1642268652925,3.53927754,3357.2,3357.0,1.48878]
[1642268653130,3.53927754,3357.2,3357.0,1.52269014]
[1642268654572,4.31627754,3357.2,3357.0,1.52269014]
[1642268655373,0.84956734,3357.5,3357.2,0.2977099]
[1642268655573,0.84956734,3357.5,3357.3,0.74428]
[1642268655778,0.84956734,3357.5,3357.4,1.27058911]
[1642268655973,0.84956734,3357.5,3357.4,1.31055763]
[1642268656175,0.00284212,3357.5,3357.4,2.79911763]
[1642268657826,0.77984212,3357.5,3357.4,2.79911763]
[1642268658221,0.77984212,3357.5,3357.4,2.91821763]
[1642268658427,4.662,3357.6,3357.4,5.19770782]
[1642268658622,4.662,3357.6,3357.4,3.22811763]
[1642268659125,1.152,3358.1,3357.6,0.74414]
[1642268659324,1.152,3358.1,3357.6,0.86324]
[1642268659524,0.00227369,3357.9,3357.6,0.86324]
[1642268659825,0.00170527,3357.8,3357.6,0.86324]
[1642268660227,1.52522044,3358.3,3357.6,0.74414]
[1642268660426,1.52522044,3358.3,3357.7,0.2976581]
[1642268660633,0.00284211,3358.2,3357.9,1.48837]
[1642268660827,0.00284211,3358.2,3358.0,1.2373318]
[1642268661036,3.55227369,3358.1,3358.0,1.2373318]
[1642268661227,0.00227369,3358.1,3358.0,1.2373318]
[1642268661669,4.35227369,3358.1,3358.0,1.2373318]
[1642268662674,13.85227369,3358.1,3358.0,1.2373318]
[1642268664275,14.62927369,3358.1,3358.0,1.2373318]
[1642268664675,16.15065343,3358.1,3358.0,1.2373318]
[1642268664878,16.66034921,3358.1,3358.0,1.2373318]
[1642268666120,7.16034921,3358.1,3358.0,1.2373318]
[1642268666521,12.01034921,3358.1,3358.0,1.2373318]
[1642268667121,10.48896947,3358.1,3358.0,1.2373318]
[1642268667521,11.26596947,3358.1,3358.0,1.2373318]
[1642268667724,11.38506947,3358.1,3358.0,1.2373318]
[1642268667923,12.90644921,3358.1,3358.0,1.2373318]
[1642268668728,11.38506947,3358.1,3358.0,1.2373318]
[1642268668991,11.38506947,3358.1,3357.2,0.135467]
[1642268669369,0.00170527,3358.0,3357.3,0.0022737]
[1642268669570,0.1191,3357.9,3357.3,0.0022737]
[1642268669771,1.22665618,3357.8,3357.3,0.0022737]
[1642268669970,0.0349098,3357.6,3357.4,1.49835292]
[1642268670170,2.88414452,3357.9,3357.4,1.49835292]
[1642268670171,1.52632216,3357.8,3357.4,1.49835292]
[1642268670371,1.53546937,3357.8,3357.5,0.00113685]
[1642268670571,2.31246937,3357.8,3357.5,0.00113685]
[1642268670770,2.03134342,3357.7,3357.5,0.00113685]
[1642268670972,18.36189045,3357.6,3357.5,0.00113685]
[1642268671475,0.01760528,3357.5,3356.8,1.2138706]
[1642268671672,0.1191,3357.4,3356.9,0.00454739]
[1642268671873,1.5084568,3357.5,3356.9,0.00454739]
[1642268672073,0.02130607,3357.4,3356.9,0.00454739]
[1642268672272,0.0213901,3357.2,3357.0,1.20722951]
[1642268672473,0.0213901,3357.2,3356.9,0.00454739]
[1642268672474,0.50969578,3357.3,3356.9,0.00454739]
[1642268672723,15.02201622,3357.2,3357.1,0.00341054]
[1642268672929,0.01957076,3357.1,3356.9,0.00454739]
[1642268673124,0.01957076,3357.1,3356.2,0.1191]
[1642268673125,0.01957076,3357.1,3356.3,0.00795793]
[1642268673325,1.41850889,3357.1,3356.4,0.1191]
[1642268673525,17.57020037,3357.2,3356.4,0.1191]
[1642268673724,0.50969578,3357.0,3356.5,0.00682108]
[1642268673927,0.50969578,3357.0,3356.6,1.39063283]
[1642268674324,3.05787993,3357.0,3356.7,0.00568424]
[1642268675025,2.54818415,3356.9,3356.7,0.00568424]
[1642268675226,3.05787993,3356.9,3356.7,0.00568424]
[1642268676482,6.14818415,3356.8,3356.7,0.00568424]
[1642268676678,4.38941353,3356.8,3356.7,0.00568424]
[1642268676874,2.54818415,3356.8,3356.7,0.00568424]
[1642268677072,3.32518415,3356.8,3356.7,0.00568424]
[1642268678476,5.25125728,3356.8,3356.7,0.00568424]
[1642268678677,3.32518415,3356.8,3356.7,0.00568424]
[1642268678885,5.23388802,3356.8,3356.7,0.00568424]
[1642268679078,3.32518415,3356.8,3356.7,0.00568424]
[1642268679479,3.8350492,3356.8,3356.7,0.00568424]
[1642268680340,7.3350492,3356.8,3356.7,0.00568424]
[1642268680538,8.1120492,3356.8,3356.7,0.00568424]
[1642268681138,4.6120492,3356.8,3356.7,0.00568424]
[1642268681943,6.53833024,3356.8,3356.7,0.00568424]
[1642268682141,4.6120492,3356.8,3356.7,0.00568424]
[1642268682540,6.53738001,3356.8,3356.7,0.00568424]
[1642268683342,12.53738001,3356.8,3356.7,0.00568424]
[1642268683542,12.53738001,3356.8,3356.1,0.00909478]
[1642268683543,0.02736752,3356.7,3356.1,0.00909478]
[1642268683843,0.02736752,3356.7,3356.2,0.1191]
[1642268684076,0.02799103,3356.5,3356.2,0.1191]
[1642268684378,1.95616264,3356.5,3356.3,0.00795793]
[1642268684580,0.50986505,3356.6,3356.3,0.00795793]
[1642268684775,0.50986505,3356.6,3356.2,0.00852635]
[1642268684975,2.54818415,3356.4,3356.3,0.1191]
[1642268685376,2.54818415,3356.4,3356.3,0.12705793]
[1642268685575,2.54818415,3356.5,3356.3,0.00795793]
[1642268686176,2.54818415,3356.5,3356.1,0.00909478]
[1642268686375,1.36846859,3356.4,3356.2,0.1191]
[1642268686779,1.36846859,3356.4,3356.3,0.00795793]
[1642268686976,2.14546859,3356.4,3356.3,0.00795793]
[1642268687375,2.14546859,3356.4,3356.1,0.00909478]
[1642268687828,4.69365274,3356.4,3356.1,0.00909478]
[1642268688424,0.777,3356.4,3356.1,0.00909478]
[1642268688621,0.777,3356.4,3356.2,0.1191]
[1642268689123,0.777,3356.4,3356.3,0.00795793]
[1642268689521,2.21611611,3356.4,3356.3,0.00795793]
[1642268689732,2.21611611,3356.4,3356.1,0.75375478]
[1642268689924,2.54818415,3356.3,3356.1,0.75375478]
[1642268690225,2.54818415,3356.3,3356.2,0.15891735]
[1642268691878,2.54818415,3356.3,3356.2,1.42703824]
[1642268692081,2.54818415,3356.3,3356.2,0.15891735]
[1642268693282,0.777,3356.3,3356.2,0.15891735]
[1642268694283,0.777,3356.3,3356.2,0.12762635]
[1642268694887,3.32531029,3356.3,3356.2,0.12762635]
[1642268695525,3.32531029,3356.3,3356.2,0.00852635]
[1642268695926,3.32531029,3356.3,3356.0,0.0260302]
[1642268696328,3.32531029,3356.3,3356.1,0.00909478]
[1642268696531,4.10231029,3356.3,3356.1,0.00909478]
[1642268697127,1.554,3356.3,3356.1,0.00909478]
[1642268697329,1.554,3356.3,3356.1,0.02040045]
[1642268697728,1.554,3356.3,3356.2,0.00852635]
[1642268698331,1.554,3356.3,3356.0,0.0260302]
[1642268698529,1.554,3356.3,3356.1,0.00909478]
[1642268698985,1.554,3356.3,3356.1,0.75375478]
[1642268699374,1.554,3356.3,3356.2,0.00852635]
[1642268699774,2.331,3356.3,3356.2,0.00852635]
[1642268699975,0.00852635,3356.2,3356.1,0.74466]
[1642268700474,0.00852635,3356.2,3355.9,1.324997]
[1642268700676,0.02751931,3356.1,3355.8,1.48929]
[1642268700875,0.02751931,3356.1,3356.0,0.00113685]
[1642268700876,1.16201607,3356.1,3356.0,0.00113685]
[1642268701275,1.16201607,3356.1,3356.0,0.02102285]
[1642268701675,1.16201607,3356.1,3356.0,1.32429098]
[1642268702175,1.16201607,3356.1,3356.0,2.06893098]
[1642268703025,1.93901607,3356.1,3356.0,2.06893098]
[1642268703425,1.93901607,3356.1,3356.0,0.76566285]
[1642268704025,1.93901607,3356.1,3356.0,0.74577685]
[1642268704225,1.93901607,3356.1,3356.0,0.00113685]
[1642268704626,1.93901607,3356.1,3355.8,1.25706386]
[1642268704826,1.93901607,3356.1,3355.8,0.0022737]
[1642268705026,1.93901607,3356.1,3355.9,0.00170528]
[1642268705228,1.93901607,3356.1,3355.8,0.0022737]
[1642268705430,1.93901607,3356.1,3356.0,0.020465]
[1642268706229,2.71601607,3356.1,3356.0,0.020465]
[1642268707274,2.71601607,3356.1,3355.8,0.1213737]
[1642268707677,2.71601607,3356.1,3355.9,0.00170528]
[1642268708474,2.71601607,3356.1,3355.9,0.01932428]
[1642268709475,0.42110988,3356.0,3355.9,0.01932428]
[1642268712929,1.19810988,3356.0,3355.9,0.01932428]
[1642268713129,3.74650594,3356.0,3355.9,0.76395428]
[1642268715278,3.74650594,3356.0,3355.9,0.88305428]
[1642268716083,4.52350594,3356.0,3355.9,0.88305428]
[1642268717479,4.52350594,3356.0,3355.9,0.76395428]
[1642268719324,5.30050594,3356.0,3355.9,0.76395428]
[1642268720530,2.83735201,3356.1,3355.9,3.34625439]
[1642268720727,2.83735201,3356.1,3356.0,7.75414515]
[1642268720928,2.83735201,3356.1,3356.0,11.67594515]
[1642268721127,0.77560836,3356.4,3356.0,11.68154515]
[1642268721493,1.15837455,3356.4,3356.3,0.789863]
[1642268721678,1.15837455,3356.4,3356.3,1.36864056]
[1642268721877,1.15951139,3356.4,3356.3,1.48464056]
[1642268722177,1.4560088,3356.5,3356.3,1.48624056]
[1642268722377,1.4560088,3356.5,3356.4,0.1191]
[1642268722578,0.00170527,3356.7,3356.4,0.5434]
[1642268722778,0.00170527,3356.7,3356.6,0.026596]
[1642268722979,2.331,3356.8,3356.7,0.74438]
[1642268723279,2.3332737,3356.8,3356.7,1.20485839]
[1642268723680,2.3332737,3356.8,3356.7,2.28750866]
[1642268724479,2.3332737,3356.8,3356.7,2.29346113]
[1642268724480,2.84301157,3356.8,3356.7,2.29346113]
[1642268725729,3.1102737,3356.8,3356.7,2.29346113]
[1642268727432,0.777,3357.2,3356.7,2.29346113]
[1642268727731,0.777,3357.2,3356.8,0.022789]
[1642268727932,0.00170527,3357.1,3356.9,0.429]
[1642268728330,1.47792122,3357.0,3356.9,0.429]
[1642268728532,0.00113684,3357.0,3356.9,0.429]
[1642268728987,0.77813684,3357.0,3356.9,0.429]
[1642268731690,0.77813684,3357.0,3356.9,0.5481]
[1642268732082,0.777,3357.2,3356.9,0.5481]
[1642268732283,0.777,3357.2,3357.1,0.029903]
[1642268732482,0.777,3357.2,3357.1,0.774233]
[1642268732727,0.777,3357.2,3357.1,1.23840435]
[1642268732728,0.77813685,3357.2,3357.1,1.23840435]
[1642268732929,0.77813685,3357.2,3357.1,1.203233]
[1642268733129,0.77813685,3357.2,3357.1,1.24002951]
[1642268733330,0.77813685,3357.2,3357.1,1.203233]
[1642268733535,0.777,3357.8,3357.3,1.17249765]
[1642268733730,0.777,3357.8,3357.7,3.495463]
[1642268733930,0.777,3357.8,3357.7,5.59553481]
[1642268734129,3.08358917,3358.1,3357.7,2.59773481]
[1642268734336,3.08358917,3358.1,3358.0,0.045463]
[1642268734529,1.52201622,3358.3,3358.0,9.09103068]
[1642268734733,1.52201622,3358.3,3358.2,0.045463]
[1642268734931,1.52201622,3358.3,3358.2,0.474463]
[1642268735130,2.28247146,3358.6,3358.2,0.474463]
[1642268735331,2.28247146,3358.6,3358.5,0.045463]
[1642268735531,2.28247146,3358.6,3358.5,0.474463]
[1642268736334,4.5355,3359.0,3358.5,2.002163]
[1642268736582,0.777,3359.0,3358.9,0.041568]
[1642268736783,0.777,3359.0,3358.8,0.00569819]
[1642268736994,12.0,3358.9,3358.0,15.003]
[1642268737181,2.0,3358.8,3358.0,15.003]
[1642268737382,0.1191,3358.7,3358.0,15.003]
[1642268737582,0.00852635,3358.7,3358.0,15.74723]
[1642268737780,0.12705793,3358.6,3358.0,15.74723]
[1642268737982,2.5560235,3358.5,3358.0,15.74723]
[1642268738180,0.1191,3358.4,3358.0,15.78719021]
[1642268738381,0.12592108,3358.4,3358.0,15.78719021]
[1642268738582,0.00625266,3358.3,3358.0,15.78719021]
[1642268739083,0.00568423,3358.2,3358.0,15.78719021]
[1642268739282,0.00568423,3358.2,3358.0,15.04296021]
[1642268739487,0.00511581,3358.1,3358.0,15.003]
[1642268741828,0.78211581,3358.1,3358.0,15.003]
[1642268744989,1.55911581,3358.1,3358.0,15.003]
[1642268745190,1.55911581,3358.1,3358.0,15.03461673]
[1642268745790,1.55911581,3358.1,3358.0,15.003]
[1642268747492,5.42688757,3358.1,3358.0,15.003]
[1642268747725,4.10638454,3358.1,3358.0,15.003]
[1642268748128,4.88338454,3358.1,3358.0,15.003]
[1642268748329,4.63338454,3358.1,3358.0,15.003]
[1642268748526,10.78338454,3358.1,3358.0,15.003]
[1642268748926,4.63338454,3358.1,3358.0,15.003]
[1642268751230,5.41038454,3358.1,3358.0,15.003]
[1642268751677,2.86311581,3358.1,3358.0,15.003]
[1642268752481,10.91311581,3358.1,3358.0,15.003]
[1642268752682,13.46034434,3358.1,3358.0,15.003]
[1642268753081,5.41034434,3358.1,3358.0,15.003]
[1642268754486,6.18734434,3358.1,3358.0,15.003]
[1642268755726,6.18734434,3358.1,3358.0,15.1221]
[1642268756428,6.18734434,3358.1,3358.0,15.003]
[1642268757535,2.71276329,3358.1,3358.0,15.16047016]
[1642268757729,2.71276329,3358.1,3358.0,16.1368921]
[1642268757929,0.777,3358.4,3358.1,9.95]
[1642268758129,0.777,3358.4,3358.2,2.456632]
[1642268758328,0.777,3358.4,3358.3,11.4]
[1642268758527,1.51522745,3358.9,3358.3,11.00291755]
[1642268758728,1.51522745,3358.9,3358.4,3.37258906]
[1642268758989,1.51522745,3358.9,3358.5,0.7633488]
[1642268759177,1.51522745,3358.9,3358.6,0.119]
[1642268759378,1.51522745,3358.9,3358.6,0.548]
[1642268759780,5.42346613,3359.5,3358.6,0.548]
[1642268759781,2.331,3359.4,3358.6,0.548]
[1642268759981,2.331,3359.4,3358.9,0.58795266]
[1642268760188,0.119,3359.3,3358.4,1.37258906]
[1642268760381,0.793533,3359.0,3358.2,0.429]
[1642268760582,0.00454739,3358.9,3358.4,0.74413]
[1642268760982,0.00397897,3358.8,3358.4,0.74413]
[1642268761383,1.570533,3359.0,3358.5,1.47999256]
[1642268761384,0.00341054,3358.7,3358.5,1.47999256]
[1642268761582,0.00341054,3358.7,3358.6,0.119]
[1642268761781,0.00341054,3358.7,3358.6,0.548]
[1642268761984,1.554,3359.0,3358.6,0.548]
[1642268762282,0.00454739,3358.9,3358.6,0.548]
[1642268762583,0.00397897,3358.8,3358.7,0.24805089]
[1642268762837,0.00397897,3358.8,3358.6,0.429]
[1642268763230,0.00341054,3358.7,3358.6,0.429]
[1642268763629,0.00341054,3358.7,3358.5,1.59899256]
[1642268763828,0.00341054,3358.7,3358.5,0.119]
[1642268764029,0.00284212,3358.6,3358.5,0.119]
[1642268764630,0.00284212,3358.6,3358.5,0.8631]
[1642268764830,0.00284212,3358.6,3358.5,0.89534256]
[1642268765832,0.00284212,3358.6,3358.5,0.77634256]
[1642268766893,0.00284212,3358.6,3358.5,1.32434256]
[1642268767088,0.00284212,3358.6,3358.5,1.84566374]
[1642268767288,0.77984212,3358.6,3358.5,1.84566374]
[1642268767693,0.77984212,3358.6,3358.5,1.84567412]
[1642268768389,0.77984212,3358.6,3358.5,1.81342118]
[1642268768792,0.77984212,3358.6,3358.5,1.69442118]
[1642268768991,0.77984212,3358.6,3358.3,1.48821]
[1642268769191,0.77984212,3358.6,3358.0,15.03656314]
[1642268769192,0.02567616,3358.3,3358.0,15.003]
[1642268769393,0.030134,3358.4,3358.0,15.003]
[1642268769588,0.030134,3358.4,3358.0,15.04134799]
[1642268769795,0.00113685,3358.3,3358.1,0.74421]
[1642268769992,0.00113685,3358.3,3358.1,0.78320699]
[1642268770227,0.00113685,3358.3,3358.1,0.74421]
[1642268770228,2.12157158,3358.3,3358.1,0.74421]
[1642268770427,2.12157158,3358.3,3358.1,0.77464636]
[1642268770632,2.12157158,3358.3,3358.1,0.74421]
[1642268770828,2.12157158,3358.3,3358.1,0.78163957]
[1642268771028,2.12157158,3358.3,3358.1,0.74421]
[1642268771230,0.77813685,3358.3,3358.1,0.74421]
[1642268771430,1.19541498,3358.2,3358.1,0.74421]
[1642268771629,1.19541498,3358.2,3358.0,15.003]
[1642268772631,1.22248343,3358.1,3358.0,15.003]
[1642268772832,3.46056648,3358.1,3358.0,15.003]
[1642268773234,14.51056648,3358.1,3358.0,15.003]
[1642268773632,15.28756648,3358.1,3358.0,15.003]
[1642268773838,15.28756648,3358.1,3357.7,0.119241]
[1642268773839,16.9,3358.0,3357.7,0.119241]
[1642268774089,16.945463,3357.8,3357.7,4.1e-05]
[1642268774282,16.9,3357.7,3357.3,0.119241]
[1642268774681,16.9,3357.7,3357.4,0.00397896]
[1642268775282,0.02203794,3357.6,3357.4,0.00397896]
[1642268775482,15.62625511,3357.5,3357.4,0.00397896]
[1642268775681,15.74535511,3357.5,3357.4,0.00397896]
[1642268776684,15.74535511,3357.5,3356.3,1.60821]
[1642268776685,12.85,3357.4,3356.3,1.60821]
[1642268776983,0.023886,3357.3,3356.3,1.60821]
[1642268777182,0.023886,3357.3,3356.4,0.00568424]
[1642268777385,0.023886,3357.3,3356.5,0.1191]
[1642268777832,0.023886,3357.3,3356.6,0.00454739]
[1642268778029,0.023886,3357.3,3356.6,0.74911739]
[1642268778433,0.023886,3357.3,3356.7,0.00397897]
[1642268778634,2.54778797,3357.2,3356.7,1.49291897]
[1642268778831,2.54778797,3357.2,3356.7,1.52727814]
[1642268779049,2.54778797,3357.2,3356.8,0.00341054]
[1642268779233,2.54778797,3357.2,3356.9,0.74445]
[1642268779431,1.16256461,3357.1,3356.9,0.74445]
[1642268779630,1.16256461,3357.1,3357.0,0.0022737]
[1642268780033,1.93956461,3357.1,3357.0,0.0022737]
[1642268780330,0.777,3357.1,3357.0,0.0022737]
[1642268781498,0.777,3357.1,3357.0,0.1213737]
[1642268782890,0.777,3357.1,3357.0,0.0022737]
[1642268783089,1.554,3357.1,3357.0,0.0022737]
[1642268784892,1.554,3357.1,3357.0,0.1213737]
[1642268785092,1.554,3357.1,3357.0,1.65578806]
[1642268785727,1.554,3357.1,3357.0,0.1213737]
[1642268785929,1.554,3357.1,3357.0,0.0022737]
[1642268786332,2.331,3357.1,3357.0,0.0022737]
[1642268787132,2.331,3357.1,3357.0,0.1213737]
[1642268787330,2.331,3357.1,3357.0,1.21730839]
[1642268789679,3.108,3357.1,3357.0,1.21730839]
[1642268789878,3.108,3357.1,3357.0,0.0022737]
[1642268790478,3.108,3357.1,3357.0,0.7467337]
[1642268790680,3.108,3357.1,3357.0,0.74446]
[1642268790881,4.61626875,3357.1,3357.0,0.0022737]
[1642268791282,4.61626875,3357.1,3356.8,0.00341054]
[1642268791881,4.61626875,3357.1,3356.9,0.74446]
[1642268792083,4.61626875,3357.1,3356.8,0.00341054]
[1642268792283,4.61626875,3357.1,3357.0,0.0022737]
[1642268792486,4.61626875,3357.1,3356.8,0.00341054]
[1642268792929,5.39326875,3357.1,3356.8,0.00341054]
[1642268793831,5.39326875,3357.1,3356.4,0.1191]
[1642268793832,0.045463,3356.9,3356.4,0.1191]
[1642268794035,1.88007584,3357.1,3356.4,0.1191]
[1642268794253,0.5035,3357.5,3356.1,2.52797898]
[1642268794438,0.7593,3358.4,3356.1,2.52797898]
[1642268794439,0.777,3358.6,3357.2,5.36]
[1642268794633,1.554,3359.0,3358.5,7.3]
[1642268794831,1.554,3359.0,3358.6,7.943662]
[1642268794832,2.52131389,3358.9,3358.6,7.943662]
[1642268795032,1.22541389,3358.9,3358.8,5.36]
[1642268795230,0.18761389,3359.0,3358.9,4.53380925]
[1642268795432,5.42346613,3359.5,3359.0,12.05]
[1642268795736,4.5087875,3361.3,3358.9,7.9548004]
[1642268795737,6.87604431,3360.8,3359.8,16.05]
[1642268795936,4.28304431,3360.8,3360.7,11.445463]
[1642268796133,3.69298686,3360.8,3360.7,19.15350225]
[1642268796330,2.39708686,3360.8,3360.7,9.23784456]
[1642268796603,5.05612427,3361.1,3360.7,9.56684456]
[1642268796792,4.86598206,3361.1,3361.0,5.36]
[1642268796994,5.6,3361.1,3361.0,5.789]
[1642268797191,0.0244422,3361.3,3361.0,5.82431995]
[1642268797390,0.0244422,3361.3,3361.1,0.7436]
[1642268797594,4.74187771,3361.4,3361.2,0.429]
[1642268797990,14.65,3361.3,3361.2,0.429]
[1642268798190,14.65,3361.3,3361.0,1.4872]
[1642268798393,12.78819997,3361.3,3360.2,2.0]
[1642268798592,0.13819997,3361.3,3361.1,0.00113685]
[1642268798791,0.13819997,3361.3,3360.8,0.74373]
[1642268798792,0.13819997,3361.3,3360.9,0.83246106]
[1642268798992,0.13819997,3361.3,3360.9,0.09109475]
[1642268799295,0.13819997,3361.3,3361.0,0.00170527]
[1642268799491,0.91519997,3361.3,3361.1,0.08032765]
[1642268799697,0.119,3361.2,3361.0,0.00170527]
[1642268800095,18.44239241,3361.1,3360.8,0.00284212]
[1642268800340,0.119,3361.0,3360.0,0.0073895]
[1642268800736,0.119,3361.0,3360.1,1.4388916]
[1642268800940,0.119,3361.0,3360.2,0.09795791]
[1642268801138,1.25522695,3360.5,3360.2,0.10421057]
[1642268801340,0.119,3361.2,3360.3,0.00568423]
[1642268801538,0.119,3361.2,3360.4,1.55741473]
[1642268801739,0.119,3361.2,3360.4,0.06994473]
[1642268801943,0.119,3361.2,3360.5,0.00454739]
[1642268802339,1.34169751,3361.1,3359.9,0.00795793]
[1642268802537,1.34169751,3361.1,3359.9,1.44189877]
[1642268802538,1.47760029,3361.0,3359.9,1.44189877]
[1642268802739,0.119,3360.9,3359.9,0.00795793]
[1642268802938,0.119,3360.9,3360.0,0.0073895]
[1642268803141,0.119,3360.9,3360.0,0.74384]
[1642268803338,0.119,3361.0,3360.1,0.05909495]
[1642268803540,0.119,3361.0,3360.1,0.00682108]
[1642268803740,0.119,3361.0,3360.2,0.00625266]
[1642268803984,0.119,3361.0,3360.1,0.00682108]
[1642268804184,0.119,3361.0,3360.2,0.00625266]
[1642268804386,1.32209177,3360.9,3360.1,0.00682108]
[1642268804598,0.119,3360.8,3360.1,0.00682108]
[1642268804988,0.119,3360.8,3359.7,0.00909477]
[1642268805390,0.50931235,3360.7,3359.7,0.00909477]
[1642268805588,2.3312708,3360.6,3359.7,0.00909477]
[1642268805991,1.24647002,3360.5,3359.7,0.00909477]
[1642268806190,0.119,3360.4,3359.4,0.01080004]
[1642268806387,0.119,3360.4,3359.2,0.01246334]
[1642268806388,0.119,3360.4,3359.3,0.01136847]
[1642268806792,1.46305367,3360.0,3359.3,0.01136847]
[1642268806990,12.5,3359.8,3358.4,3.63729854]
[1642268807195,0.119,3359.7,3358.4,3.63729854]
[1642268807389,0.119,3359.7,3358.5,0.12354739]
[1642268807390,2.119,3359.7,3358.5,0.12354739]
[1642268807587,2.119,3359.7,3358.4,3.63729854]
[1642268807588,9.55,3359.5,3358.4,2.3962644]
[1642268807845,9.669,3359.5,3358.5,0.119]
[1642268808043,1.10379385,3359.4,3358.5,0.119]
[1642268808241,1.12182668,3358.6,3358.3,0.119]
[1642268808442,0.119,3359.5,3358.3,0.119]